{"text_format":"1","workbook":"xlsx","n_sheets":2,"sheets":["Riepilogo","Foglio2"],"not_rendered":{"charts":0,"images":1,"macros":1,"external_links":0,"defined_names":6,"comments":0,"pivot_tables":0},"unopened":[],"bounds":{"document_bytes":16777216,"sheet_cells":100000,"rows_first":2000,"rows_last":500,"rows_between":2000,"halvings":0,"cell_chars":16384,"cell_head_chars":4096},"cells_cut":0,"cells_raw":0,"read":"whole","date_system":"1900"}

{"sheet":"Riepilogo","index":0,"n_rows":86,"n_cols":61,"rows_kept":86,"cut":false,"hidden":false,"merged":[[0,5,2,9],[83,1,83,2],[82,3,82,4],[83,3,83,4],[0,0,0,1],[1,0,1,1],[2,0,2,1],[2,2,2,3],[0,2,0,3],[1,2,1,3],[77,0,77,1],[77,2,77,4],[78,0,80,4],[3,5,3,9]]}
["ID DOMANDA DI SOSTEGNO PROGETTO FESR",null,null,null,null,"Le ore lavorate vanno inserite in formato decimale con approssimazione alla mezz'ora.\nEsempio:     - 5h 30' va inserito 5,5\n                    - 6h 00' va inserito 6,0"]
["RAGIONE SOCIALE PARTECIPANTE"]
["TIPOLOGIA DI BENEFICIARIO"]
[null,null,null,null,null,"N.B.: per un corretto funzionamento del file vanno attivate le macro!"]
[null,null,null,null,null,2018,null,null,null,null,2019,null,null,null,null,null,null,null,null,null,null,null,2020,null,null,null,null,null,null,null,null,null,null,null,2021,null,null,null,null,null,null,null,null,null,null,null,2022]
["DIPENDENTE ","COGNOME NOME DIPENDENTE ","Qualifica, inquadramento e livello del lavoratore (come da CCNL applicato)","BENEFICIARIO/FASCIA DI COSTO-LIVELLO","IMPORTO STANDARD UNITARIO (€)","AGOSTO 2018","SETTEMBRE 2018","OTTOBRE 2018","NOVEMBRE 2018","DICEMBRE 2018","GENNAIO 2019","FEBBRAIO 2019","MARZO 2019","APRILE 2019","MAGGIO 2019","GIUGNO 2019","LUGLIO 2019","AGOSTO 2019","SETTEMBRE 2019","OTTOBRE 2019","NOVEMBRE 2019","DICEMBRE 2019","GENNAIO 2020","FEBBRAIO 2020","MARZO 2020","APRILE 2020","MAGGIO 2020","GIUGNO 2020","LUGLIO 2020","AGOSTO 2020","SETTEMBRE 2020","OTTOBRE 2020","NOVEMBRE 2020","DICEMBRE 2020","GENNAIO 2021","FEBBRAIO 2021","MARZO 2021","APRILE 2021","MAGGIO 2021","GIUGNO 2021","LUGLIO 2021","AGOSTO 2021","SETTEMBRE 2021","OTTOBRE 2021","NOVEMBRE 2021","DICEMBRE 2021","GENNAIO 2022","FEBBRAIO 2022","MARZO 2022","APRILE 2022","MAGGIO 2022","GIUGNO 2022","LUGLIO 2022","AGOSTO 2022","SETTEMBRE 2022","OTTOBRE 2022","NOVEMBRE 2022","DICEMBRE 2022","TOTALE ORE RENDICONTATE PER IL PERIODO","IMPORTO RENDICONTABILE"]
[1,null,null,null,{"$f":"RIGHT(D7,2)","v":""},null,null,null,null,null,null,null,null,null,null,null,null,null,null,null,null,null,null,null,null,null,null,null,null,null,null,null,null,null,null,null,null,null,null,null,null,null,null,null,null,null,null,null,null,null,null,null,null,null,null,null,null,null,{"$f":"SUM(F7:BF7)","v":0},{"$f":"+BG7*E7","v":{"$error":"#VALUE!"}},{"$f":"IF(ISERROR(BH7), 0, BH7)","v":0}]
[2,null,null," "," ",null,null,null,null,null,null,null,null,null,null,null,null,null,null,null,null,null,null,null,null,null,null,null,null,null,null,null,null,null,null,null,null,null,null,null,null,null,null,null,null,null,null,null,null,null,null,null,null,null,null,null,null,null,{"$f":"SUM(F8:BF8)","v":0},{"$error":"#VALUE!"},{"$f":"IF(ISERROR(BH8), 0, BH8)","v":0}]
[3,null,null," "," ",null,null,null,null,null,null,null,null,null,null,null,null,null,null,null,null,null,null,null,null,null,null,null,null,null,null,null,null,null,null,null,null,null,null,null,null,null,null,null,null,null,null,null,null,null,null,null,null,null,null,null,null,null,0,{"$error":"#VALUE!"},0]
[4,null,null," "," ",null,null,null,null,null,null,null,null,null,null,null,null,null,null,null,null,null,null,null,null,null,null,null,null,null,null,null,null,null,null,null,null,null,null,null,null,null,null,null,null,null,null,null,null,null,null,null,null,null,null,null,null,null,0,{"$error":"#VALUE!"},0]
[5,null,null," "," ",null,null,null,null,null,null,null,null,null,null,null,null,null,null,null,null,null,null,null,null,null,null,null,null,null,null,null,null,null,null,null,null,null,null,null,null,null,null,null,null,null,null,null,null,null,null,null,null,null,null,null,null,null,0,{"$error":"#VALUE!"},0]
[6,null,null," "," ",null,null,null,null,null,null,null,null,null,null,null,null,null,null,null,null,null,null,null,null,null,null,null,null,null,null,null,null,null,null,null,null,null,null,null,null,null,null,null,null,null,null,null,null,null,null,null,null,null,null,null,null,null,0,{"$error":"#VALUE!"},0]
[7,null,null," "," ",null,null,null,null,null,null,null,null,null,null,null,null,null,null,null,null,null,null,null,null,null,null,null,null,null,null,null,null,null,null,null,null,null,null,null,null,null,null,null,null,null,null,null,null,null,null,null,null,null,null,null,null,null,0,{"$error":"#VALUE!"},0]
[8,null,null," "," ",null,null,null,null,null,null,null,null,null,null,null,null,null,null,null,null,null,null,null,null,null,null,null,null,null,null,null,null,null,null,null,null,null,null,null,null,null,null,null,null,null,null,null,null,null,null,null,null,null,null,null,null,null,0,{"$error":"#VALUE!"},0]
[9,null,null," "," ",null,null,null,null,null,null,null,null,null,null,null,null,null,null,null,null,null,null,null,null,null,null,null,null,null,null,null,null,null,null,null,null,null,null,null,null,null,null,null,null,null,null,null,null,null,null,null,null,null,null,null,null,null,0,{"$error":"#VALUE!"},0]
[10,null,null," "," ",null,null,null,null,null,null,null,null,null,null,null,null,null,null,null,null,null,null,null,null,null,null,null,null,null,null,null,null,null,null,null,null,null,null,null,null,null,null,null,null,null,null,null,null,null,null,null,null,null,null,null,null,null,0,{"$error":"#VALUE!"},0]
[11,null,null," "," ",null,null,null,null,null,null,null,null,null,null,null,null,null,null,null,null,null,null,null,null,null,null,null,null,null,null,null,null,null,null,null,null,null,null,null,null,null,null,null,null,null,null,null,null,null,null,null,null,null,null,null,null,null,0,{"$error":"#VALUE!"},0]
[12,null,null," "," ",null,null,null,null,null,null,null,null,null,null,null,null,null,null,null,null,null,null,null,null,null,null,null,null,null,null,null,null,null,null,null,null,null,null,null,null,null,null,null,null,null,null,null,null,null,null,null,null,null,null,null,null,null,0,{"$error":"#VALUE!"},0]
[13,null,null," "," ",null,null,null,null,null,null,null,null,null,null,null,null,null,null,null,null,null,null,null,null,null,null,null,null,null,null,null,null,null,null,null,null,null,null,null,null,null,null,null,null,null,null,null,null,null,null,null,null,null,null,null,null,null,0,{"$error":"#VALUE!"},0]
[14,null,null," "," ",null,null,null,null,null,null,null,null,null,null,null,null,null,null,null,null,null,null,null,null,null,null,null,null,null,null,null,null,null,null,null,null,null,null,null,null,null,null,null,null,null,null,null,null,null,null,null,null,null,null,null,null,null,0,{"$error":"#VALUE!"},0]
[15,null,null," "," ",null,null,null,null,null,null,null,null,null,null,null,null,null,null,null,null,null,null,null,null,null,null,null,null,null,null,null,null,null,null,null,null,null,null,null,null,null,null,null,null,null,null,null,null,null,null,null,null,null,null,null,null,null,0,{"$error":"#VALUE!"},0]
[16,null,null," "," ",null,null,null,null,null,null,null,null,null,null,null,null,null,null,null,null,null,null,null,null,null,null,null,null,null,null,null,null,null,null,null,null,null,null,null,null,null,null,null,null,null,null,null,null,null,null,null,null,null,null,null,null,null,0,{"$error":"#VALUE!"},0]
[17,null,null," "," ",null,null,null,null,null,null,null,null,null,null,null,null,null,null,null,null,null,null,null,null,null,null,null,null,null,null,null,null,null,null,null,null,null,null,null,null,null,null,null,null,null,null,null,null,null,null,null,null,null,null,null,null,null,0,{"$error":"#VALUE!"},0]
[18,null,null," "," ",null,null,null,null,null,null,null,null,null,null,null,null,null,null,null,null,null,null,null,null,null,null,null,null,null,null,null,null,null,null,null,null,null,null,null,null,null,null,null,null,null,null,null,null,null,null,null,null,null,null,null,null,null,0,{"$error":"#VALUE!"},0]
[19,null,null," "," ",null,null,null,null,null,null,null,null,null,null,null,null,null,null,null,null,null,null,null,null,null,null,null,null,null,null,null,null,null,null,null,null,null,null,null,null,null,null,null,null,null,null,null,null,null,null,null,null,null,null,null,null,null,0,{"$error":"#VALUE!"},0]
[20,null,null," "," ",null,null,null,null,null,null,null,null,null,null,null,null,null,null,null,null,null,null,null,null,null,null,null,null,null,null,null,null,null,null,null,null,null,null,null,null,null,null,null,null,null,null,null,null,null,null,null,null,null,null,null,null,null,0,{"$error":"#VALUE!"},0]
[21,null,null," "," ",null,null,null,null,null,null,null,null,null,null,null,null,null,null,null,null,null,null,null,null,null,null,null,null,null,null,null,null,null,null,null,null,null,null,null,null,null,null,null,null,null,null,null,null,null,null,null,null,null,null,null,null,null,0,{"$error":"#VALUE!"},0]
[22,null,null," "," ",null,null,null,null,null,null,null,null,null,null,null,null,null,null,null,null,null,null,null,null,null,null,null,null,null,null,null,null,null,null,null,null,null,null,null,null,null,null,null,null,null,null,null,null,null,null,null,null,null,null,null,null,null,0,{"$error":"#VALUE!"},0]
[23,null,null," "," ",null,null,null,null,null,null,null,null,null,null,null,null,null,null,null,null,null,null,null,null,null,null,null,null,null,null,null,null,null,null,null,null,null,null,null,null,null,null,null,null,null,null,null,null,null,null,null,null,null,null,null,null,null,0,{"$error":"#VALUE!"},0]
[24,null,null," "," ",null,null,null,null,null,null,null,null,null,null,null,null,null,null,null,null,null,null,null,null,null,null,null,null,null,null,null,null,null,null,null,null,null,null,null,null,null,null,null,null,null,null,null,null,null,null,null,null,null,null,null,null,null,0,{"$error":"#VALUE!"},0]
[25,null,null," "," ",null,null,null,null,null,null,null,null,null,null,null,null,null,null,null,null,null,null,null,null,null,null,null,null,null,null,null,null,null,null,null,null,null,null,null,null,null,null,null,null,null,null,null,null,null,null,null,null,null,null,null,null,null,0,{"$error":"#VALUE!"},0]
[26,null,null," "," ",null,null,null,null,null,null,null,null,null,null,null,null,null,null,null,null,null,null,null,null,null,null,null,null,null,null,null,null,null,null,null,null,null,null,null,null,null,null,null,null,null,null,null,null,null,null,null,null,null,null,null,null,null,0,{"$error":"#VALUE!"},0]
[27,null,null," "," ",null,null,null,null,null,null,null,null,null,null,null,null,null,null,null,null,null,null,null,null,null,null,null,null,null,null,null,null,null,null,null,null,null,null,null,null,null,null,null,null,null,null,null,null,null,null,null,null,null,null,null,null,null,0,{"$error":"#VALUE!"},0]
[28,null,null," "," ",null,null,null,null,null,null,null,null,null,null,null,null,null,null,null,null,null,null,null,null,null,null,null,null,null,null,null,null,null,null,null,null,null,null,null,null,null,null,null,null,null,null,null,null,null,null,null,null,null,null,null,null,null,0,{"$error":"#VALUE!"},0]
[29,null,null," "," ",null,null,null,null,null,null,null,null,null,null,null,null,null,null,null,null,null,null,null,null,null,null,null,null,null,null,null,null,null,null,null,null,null,null,null,null,null,null,null,null,null,null,null,null,null,null,null,null,null,null,null,null,null,0,{"$error":"#VALUE!"},0]
[30,null,null," "," ",null,null,null,null,null,null,null,null,null,null,null,null,null,null,null,null,null,null,null,null,null,null,null,null,null,null,null,null,null,null,null,null,null,null,null,null,null,null,null,null,null,null,null,null,null,null,null,null,null,null,null,null,null,0,{"$error":"#VALUE!"},0]
[31,null,null," "," ",null,null,null,null,null,null,null,null,null,null,null,null,null,null,null,null,null,null,null,null,null,null,null,null,null,null,null,null,null,null,null,null,null,null,null,null,null,null,null,null,null,null,null,null,null,null,null,null,null,null,null,null,null,0,{"$error":"#VALUE!"},0]
[32,null,null," "," ",null,null,null,null,null,null,null,null,null,null,null,null,null,null,null,null,null,null,null,null,null,null,null,null,null,null,null,null,null,null,null,null,null,null,null,null,null,null,null,null,null,null,null,null,null,null,null,null,null,null,null,null,null,0,{"$error":"#VALUE!"},0]
[33,null,null," "," ",null,null,null,null,null,null,null,null,null,null,null,null,null,null,null,null,null,null,null,null,null,null,null,null,null,null,null,null,null,null,null,null,null,null,null,null,null,null,null,null,null,null,null,null,null,null,null,null,null,null,null,null,null,0,{"$f":"+BG39*E39","v":{"$error":"#VALUE!"}},0]
[34,null,null," "," ",null,null,null,null,null,null,null,null,null,null,null,null,null,null,null,null,null,null,null,null,null,null,null,null,null,null,null,null,null,null,null,null,null,null,null,null,null,null,null,null,null,null,null,null,null,null,null,null,null,null,null,null,null,0,{"$error":"#VALUE!"},0]
[35,null,null," "," ",null,null,null,null,null,null,null,null,null,null,null,null,null,null,null,null,null,null,null,null,null,null,null,null,null,null,null,null,null,null,null,null,null,null,null,null,null,null,null,null,null,null,null,null,null,null,null,null,null,null,null,null,null,0,{"$error":"#VALUE!"},0]
[36,null,null," "," ",null,null,null,null,null,null,null,null,null,null,null,null,null,null,null,null,null,null,null,null,null,null,null,null,null,null,null,null,null,null,null,null,null,null,null,null,null,null,null,null,null,null,null,null,null,null,null,null,null,null,null,null,null,0,{"$error":"#VALUE!"},0]
[37,null,null," "," ",null,null,null,null,null,null,null,null,null,null,null,null,null,null,null,null,null,null,null,null,null,null,null,null,null,null,null,null,null,null,null,null,null,null,null,null,null,null,null,null,null,null,null,null,null,null,null,null,null,null,null,null,null,0,{"$error":"#VALUE!"},0]
[38,null,null," "," ",null,null,null,null,null,null,null,null,null,null,null,null,null,null,null,null,null,null,null,null,null,null,null,null,null,null,null,null,null,null,null,null,null,null,null,null,null,null,null,null,null,null,null,null,null,null,null,null,null,null,null,null,null,0,{"$error":"#VALUE!"},0]
[39,null,null," "," ",null,null,null,null,null,null,null,null,null,null,null,null,null,null,null,null,null,null,null,null,null,null,null,null,null,null,null,null,null,null,null,null,null,null,null,null,null,null,null,null,null,null,null,null,null,null,null,null,null,null,null,null,null,0,{"$error":"#VALUE!"},0]
[40,null,null," "," ",null,null,null,null,null,null,null,null,null,null,null,null,null,null,null,null,null,null,null,null,null,null,null,null,null,null,null,null,null,null,null,null,null,null,null,null,null,null,null,null,null,null,null,null,null,null,null,null,null,null,null,null,null,0,{"$error":"#VALUE!"},0]
[41,null,null," "," ",null,null,null,null,null,null,null,null,null,null,null,null,null,null,null,null,null,null,null,null,null,null,null,null,null,null,null,null,null,null,null,null,null,null,null,null,null,null,null,null,null,null,null,null,null,null,null,null,null,null,null,null,null,{"$f":"SUM(F47:BF47)","v":0},{"$f":"+BG47*E47","v":{"$error":"#VALUE!"}}]
[42,null,null," "," ",null,null,null,null,null,null,null,null,null,null,null,null,null,null,null,null,null,null,null,null,null,null,null,null,null,null,null,null,null,null,null,null,null,null,null,null,null,null,null,null,null,null,null,null,null,null,null,null,null,null,null,null,null,0,{"$error":"#VALUE!"}]
[43,null,null," "," ",null,null,null,null,null,null,null,null,null,null,null,null,null,null,null,null,null,null,null,null,null,null,null,null,null,null,null,null,null,null,null,null,null,null,null,null,null,null,null,null,null,null,null,null,null,null,null,null,null,null,null,null,null,0,{"$error":"#VALUE!"}]
[44,null,null," "," ",null,null,null,null,null,null,null,null,null,null,null,null,null,null,null,null,null,null,null,null,null,null,null,null,null,null,null,null,null,null,null,null,null,null,null,null,null,null,null,null,null,null,null,null,null,null,null,null,null,null,null,null,null,0,{"$error":"#VALUE!"}]
[45,null,null," "," ",null,null,null,null,null,null,null,null,null,null,null,null,null,null,null,null,null,null,null,null,null,null,null,null,null,null,null,null,null,null,null,null,null,null,null,null,null,null,null,null,null,null,null,null,null,null,null,null,null,null,null,null,null,0,{"$error":"#VALUE!"}]
[46,null,null," "," ",null,null,null,null,null,null,null,null,null,null,null,null,null,null,null,null,null,null,null,null,null,null,null,null,null,null,null,null,null,null,null,null,null,null,null,null,null,null,null,null,null,null,null,null,null,null,null,null,null,null,null,null,null,0,{"$error":"#VALUE!"}]
[47,null,null," "," ",null,null,null,null,null,null,null,null,null,null,null,null,null,null,null,null,null,null,null,null,null,null,null,null,null,null,null,null,null,null,null,null,null,null,null,null,null,null,null,null,null,null,null,null,null,null,null,null,null,null,null,null,null,0,{"$error":"#VALUE!"}]
[48,null,null," "," ",null,null,null,null,null,null,null,null,null,null,null,null,null,null,null,null,null,null,null,null,null,null,null,null,null,null,null,null,null,null,null,null,null,null,null,null,null,null,null,null,null,null,null,null,null,null,null,null,null,null,null,null,null,0,{"$error":"#VALUE!"}]
[49,null,null," "," ",null,null,null,null,null,null,null,null,null,null,null,null,null,null,null,null,null,null,null,null,null,null,null,null,null,null,null,null,null,null,null,null,null,null,null,null,null,null,null,null,null,null,null,null,null,null,null,null,null,null,null,null,null,0,{"$error":"#VALUE!"}]
[50,null,null," "," ",null,null,null,null,null,null,null,null,null,null,null,null,null,null,null,null,null,null,null,null,null,null,null,null,null,null,null,null,null,null,null,null,null,null,null,null,null,null,null,null,null,null,null,null,null,null,null,null,null,null,null,null,null,0,{"$error":"#VALUE!"}]
[51,null,null," "," ",null,null,null,null,null,null,null,null,null,null,null,null,null,null,null,null,null,null,null,null,null,null,null,null,null,null,null,null,null,null,null,null,null,null,null,null,null,null,null,null,null,null,null,null,null,null,null,null,null,null,null,null,null,0,{"$error":"#VALUE!"}]
[52,null,null,null,"",null,null,null,null,null,null,null,null,null,null,null,null,null,null,null,null,null,null,null,null,null,null,null,null,null,null,null,null,null,null,null,null,null,null,null,null,null,null,null,null,null,null,null,null,null,null,null,null,null,null,null,null,null,0,{"$error":"#VALUE!"}]
[53,null,null,null,"",null,null,null,null,null,null,null,null,null,null,null,null,null,null,null,null,null,null,null,null,null,null,null,null,null,null,null,null,null,null,null,null,null,null,null,null,null,null,null,null,null,null,null,null,null,null,null,null,null,null,null,null,null,0,{"$error":"#VALUE!"}]
[54,null,null,null,"",null,null,null,null,null,null,null,null,null,null,null,null,null,null,null,null,null,null,null,null,null,null,null,null,null,null,null,null,null,null,null,null,null,null,null,null,null,null,null,null,null,null,null,null,null,null,null,null,null,null,null,null,null,0,{"$error":"#VALUE!"}]
[55,null,null,null,"",null,null,null,null,null,null,null,null,null,null,null,null,null,null,null,null,null,null,null,null,null,null,null,null,null,null,null,null,null,null,null,null,null,null,null,null,null,null,null,null,null,null,null,null,null,null,null,null,null,null,null,null,null,0,{"$error":"#VALUE!"}]
[56,null,null,null,"",null,null,null,null,null,null,null,null,null,null,null,null,null,null,null,null,null,null,null,null,null,null,null,null,null,null,null,null,null,null,null,null,null,null,null,null,null,null,null,null,null,null,null,null,null,null,null,null,null,null,null,null,null,0,{"$error":"#VALUE!"}]
[57,null,null,null,"",null,null,null,null,null,null,null,null,null,null,null,null,null,null,null,null,null,null,null,null,null,null,null,null,null,null,null,null,null,null,null,null,null,null,null,null,null,null,null,null,null,null,null,null,null,null,null,null,null,null,null,null,null,0,{"$error":"#VALUE!"}]
[58,null,null,null,"",null,null,null,null,null,null,null,null,null,null,null,null,null,null,null,null,null,null,null,null,null,null,null,null,null,null,null,null,null,null,null,null,null,null,null,null,null,null,null,null,null,null,null,null,null,null,null,null,null,null,null,null,null,0,{"$error":"#VALUE!"}]
[59,null,null," "," ",null,null,null,null,null,null,null,null,null,null,null,null,null,null,null,null,null,null,null,null,null,null,null,null,null,null,null,null,null,null,null,null,null,null,null,null,null,null,null,null,null,null,null,null,null,null,null,null,null,null,null,null,null,0,{"$error":"#VALUE!"},0]
[60,null,null," "," ",null,null,null,null,null,null,null,null,null,null,null,null,null,null,null,null,null,null,null,null,null,null,null,null,null,null,null,null,null,null,null,null,null,null,null,null,null,null,null,null,null,null,null,null,null,null,null,null,null,null,null,null,null,0,{"$error":"#VALUE!"},0]
[61,null,null," "," ",null,null,null,null,null,null,null,null,null,null,null,null,null,null,null,null,null,null,null,null,null,null,null,null,null,null,null,null,null,null,null,null,null,null,null,null,null,null,null,null,null,null,null,null,null,null,null,null,null,null,null,null,null,0,{"$error":"#VALUE!"},0]
[62,null,null,null,"",null,null,null,null,null,null,null,null,null,null,null,null,null,null,null,null,null,null,null,null,null,null,null,null,null,null,null,null,null,null,null,null,null,null,null,null,null,null,null,null,null,null,null,null,null,null,null,null,null,null,null,null,null,0,{"$error":"#VALUE!"}]
[63,null,null,null,"",null,null,null,null,null,null,null,null,null,null,null,null,null,null,null,null,null,null,null,null,null,null,null,null,null,null,null,null,null,null,null,null,null,null,null,null,null,null,null,null,null,null,null,null,null,null,null,null,null,null,null,null,null,0,{"$error":"#VALUE!"}]
[64,null,null," "," ",null,null,null,null,null,null,null,null,null,null,null,null,null,null,null,null,null,null,null,null,null,null,null,null,null,null,null,null,null,null,null,null,null,null,null,null,null,null,null,null,null,null,null,null,null,null,null,null,null,null,null,null,null,0,{"$error":"#VALUE!"},0]
[65,null,null," "," ",null,null,null,null,null,null,null,null,null,null,null,null,null,null,null,null,null,null,null,null,null,null,null,null,null,null,null,null,null,null,null,null,null,null,null,null,null,null,null,null,null,null,null,null,null,null,null,null,null,null,null,null,null,0,{"$error":"#VALUE!"},0]
[66,null,null," "," ",null,null,null,null,null,null,null,null,null,null,null,null,null,null,null,null,null,null,null,null,null,null,null,null,null,null,null,null,null,null,null,null,null,null,null,null,null,null,null,null,null,null,null,null,null,null,null,null,null,null,null,null,null,0,{"$error":"#VALUE!"},0]
[67,null,null," "," ",null,null,null,null,null,null,null,null,null,null,null,null,null,null,null,null,null,null,null,null,null,null,null,null,null,null,null,null,null,null,null,null,null,null,null,null,null,null,null,null,null,null,null,null,null,null,null,null,null,null,null,null,null,0,{"$error":"#VALUE!"},0]
[68,null,null," "," ",null,null,null,null,null,null,null,null,null,null,null,null,null,null,null,null,null,null,null,null,null,null,null,null,null,null,null,null,null,null,null,null,null,null,null,null,null,null,null,null,null,null,null,null,null,null,null,null,null,null,null,null,null,0,{"$error":"#VALUE!"},0]
[69,null,null," "," ",null,null,null,null,null,null,null,null,null,null,null,null,null,null,null,null,null,null,null,null,null,null,null,null,null,null,null,null,null,null,null,null,null,null,null,null,null,null,null,null,null,null,null,null,null,null,null,null,null,null,null,null,null,0,{"$error":"#VALUE!"},0]
[70,null,null," "," ",null,null,null,null,null,null,null,null,null,null,null,null,null,null,null,null,null,null,null,null,null,null,null,null,null,null,null,null,null,null,null,null,null,null,null,null,null,null,null,null,null,null,null,null,null,null,null,null,null,null,null,null,null,0,{"$error":"#VALUE!"},0]
[null,null,null," ",null,null,null,null,null,null,null,null,null,null,null,null,null,null,null,null,null,null,null,null,null,null,null,null,null,null,null,null,null,null,null,null,null,null,null,null,null,null,null,null,null,null,null,null,null,null,null,null,null,null,null,null,null,null,{"$f":"SUM(BG7:BG76)","v":0},{"$f":"SUM(BI7:BI76)","v":0}]
["Il sottoscritto (rappresentante legale/delegato)"]
["ai sensi del DPR 445/2000, consapevole delle sanzioni penali previste dall’art. 76 del citato DPR in caso di dichiarazioni mendaci, dichiara sotto la propria responsabilità che i costi sopra indicati sono stati sostenuti dall'Ente per le attività di progetto svolte dal lavoratore. Ai sensi dell’art. 38 del D.P.R. n. 445/2000, si allega alla presente dichiarazione copia del documento di identità del sottoscrittore."]
[]
[]
[]
[null,null,null,"Firma *"]
["Data:"]
[]
[" * La sottoscrizione può avvenire anche mediante firma digitale."]

{"sheet":"Foglio2","index":1,"n_rows":20,"n_cols":8,"rows_kept":20,"cut":false,"hidden":false,"merged":[]}
[null,"BENEFICIARIO","ALTO ","MEDIO ","BASSO"]
[null,"IMPRESA",75,43,27]
[null,"UNIVERSITA'",73,48,31]
[null,"ENTE PUBBLICO DI RICERCA",55,33,29]
[]
[null,{"$f":"CONCATENATE(B2,\" \",C1,\" \",C2)","v":"IMPRESA ALTO  75"}]
[null,{"$f":"CONCATENATE(B2,\" \",D1,\" \",D2)","v":"IMPRESA MEDIO  43"}]
[null,{"$f":"CONCATENATE(B2,\" \",E1,\" \",E2)","v":"IMPRESA BASSO 27"}]
[null,{"$f":"CONCATENATE(B3,\" \",C1,\" \",C3)","v":"UNIVERSITA' ALTO  73"}]
[null,{"$f":"CONCATENATE(B3,\" \",D1,\" \",D3)","v":"UNIVERSITA' MEDIO  48"}]
[null,{"$f":"CONCATENATE(B3,\" \",E1,\" \",E3)","v":"UNIVERSITA' BASSO 31"}]
[null,{"$f":"CONCATENATE(B4,\" \",C1,\" \",C4)","v":"ENTE PUBBLICO DI RICERCA ALTO  55"}]
[null,{"$f":"CONCATENATE(B4,\" \",D1,\" \",D4)","v":"ENTE PUBBLICO DI RICERCA MEDIO  33"}]
[null,{"$f":"CONCATENATE(B4,\" \",E1,\" \",E4)","v":"ENTE PUBBLICO DI RICERCA BASSO 29"}]
[]
[]
[null,"BENEFICIARIO",null,"IMPRESA",null,"UNIVERSITA'",null,"ENTE PUBBLICO DI RICERCA"]
[null,"Impresa",null,"IMPRESA ALTO  75",null,"UNIVERSITA' ALTO  73",null,"ENTE PUBBLICO DI RICERCA ALTO  55"]
[null,"Università",null,"IMPRESA MEDIO  43",null,"UNIVERSITA' MEDIO  48",null,"ENTE PUBBLICO DI RICERCA MEDIO  33"]
[null,"Ente_pubblico_di_ricerca",null,"IMPRESA BASSO 27",null,"UNIVERSITA' BASSO 31",null,"ENTE PUBBLICO DI RICERCA BASSO 29"]